[Event "*** Titled Tuesday Blitz"]
[Site "Chess.com"]
[Date "2019.05.07"]
[Round "2"]
[White "Caterpiller35"]
[Black "Naruto-K"]
[Result "0-1"]
[WhiteElo "2403"]
[BlackElo "2540"]
[TimeControl "180+2"]
[EndTime "13:23:55 PDT"]
[Termination "Naruto-K won by resignation"]

1. d4 {[%clk 0:02:59.9]} 1... Nf6 {[%clk 0:03:00.4]} 2. Bg5 {[%clk 0:03:00.7]}
2... c5 {[%clk 0:02:57.8]} 3. d5 {[%clk 0:03:01.7]} 3... b5 {[%clk 0:02:49.2]}
4. a4 {[%clk 0:02:59.7]} 4... b4 {[%clk 0:02:38.6]} 5. Bxf6 {[%clk 0:03:00.7]}
5... gxf6 {[%clk 0:02:36.6]} 6. Nd2 {[%clk 0:03:01.5]} 6... f5 {[%clk
0:02:32.3]} 7. Nc4 {[%clk 0:03:00.8]} 7... Bg7 {[%clk 0:02:33]} 8. e3 {[%clk
0:03:01.2]} 8... d6 {[%clk 0:02:22.8]} 9. Bd3 {[%clk 0:02:50.1]} 9... e5 {[%clk
0:01:54.4]} 10. Qh5 {[%clk 0:02:46.8]} 10... e4 {[%clk 0:01:54]} 11. Be2 {[%clk
0:02:46.9]} 11... Ba6 {[%clk 0:01:52]} 12. Qxf5 {[%clk 0:02:46.4]} 12... Qe7
{[%clk 0:01:42]} 13. Qxe4 {[%clk 0:02:47.3]} 13... Bxc4 {[%clk 0:01:29.3]} 14.
Qxe7+ {[%clk 0:02:47.8]} 14... Kxe7 {[%clk 0:01:30.4]} 15. Bxc4 {[%clk
0:02:49.2]} 15... Bxb2 {[%clk 0:01:32]} 16. Rb1 {[%clk 0:02:47.8]} 16... Bc3+
{[%clk 0:01:31.8]} 17. Kf1 {[%clk 0:02:48.1]} 17... Nd7 {[%clk 0:01:29]} 18. f4
{[%clk 0:02:42.3]} 18... Nb6 {[%clk 0:01:28.6]} 19. Bb3 {[%clk 0:02:32.6]} 19...
c4 {[%clk 0:01:25.4]} 20. Ba2 {[%clk 0:02:22.8]} 20... a5 {[%clk 0:01:26.1]} 21.
Ne2 {[%clk 0:02:21.5]} 21... Bd2 {[%clk 0:01:24.3]} 22. Kf2 {[%clk 0:02:21.7]}
22... Rac8 {[%clk 0:01:09.1]} 23. Rhd1 {[%clk 0:02:21.9]} 23... c3 {[%clk
0:01:01.2]} 24. Bb3 {[%clk 0:02:22.1]} 24... Kf6 {[%clk 0:00:42.4]} 25. Nd4
{[%clk 0:02:16.5]} 25... Rhe8 {[%clk 0:00:42.3]} 26. Rxd2 {[%clk 0:02:12.2]}
26... cxd2 {[%clk 0:00:41.8]} 27. Kf3 {[%clk 0:02:08.4]} 27... Rc3 {[%clk
0:00:41.4]} 28. Rd1 {[%clk 0:02:04.8]} 28... Rcxe3+ {[%clk 0:00:22.8]} 29. Kf2
{[%clk 0:02:04.1]} 29... R3e4 {[%clk 0:00:23.6]} 30. Rxd2 {[%clk 0:02:03]} 30...
Rxf4+ {[%clk 0:00:24.7]} 31. Kg3 {[%clk 0:02:02.2]} 31... Rfe4 {[%clk
0:00:22.7]} 32. Nc6 {[%clk 0:02:01.2]} 32... Re3+ {[%clk 0:00:23.3]} 33. Kf2
{[%clk 0:02:01.1]} 33... R8e4 {[%clk 0:00:22]} 34. Nxa5 {[%clk 0:01:59.4]} 34...
Rc3 {[%clk 0:00:15.1]} 35. Nc6 {[%clk 0:01:58.3]} 35... Rf4+ {[%clk 0:00:16.2]}
36. Ke2 {[%clk 0:01:55.6]} 36... Nd7 {[%clk 0:00:15.8]} 37. g3 {[%clk
0:01:53.8]} 37... Re4+ {[%clk 0:00:16.9]} 38. Kf2 {[%clk 0:01:54.5]} 38... Ne5
{[%clk 0:00:17]} 39. Nxe5 {[%clk 0:01:54.2]} 39... Kxe5 {[%clk 0:00:18.9]} 40.
Rd1 {[%clk 0:01:40.5]} 40... f5 {[%clk 0:00:16.9]} 41. a5 {[%clk 0:01:40.1]}
41... Rc7 {[%clk 0:00:16]} 42. a6 {[%clk 0:01:40.6]} 42... Ra7 {[%clk
0:00:17.2]} 43. Ra1 {[%clk 0:01:41.8]} 43... Kd4 {[%clk 0:00:18.6]} 44. Ra4
{[%clk 0:01:39.5]} 44... Kc5 {[%clk 0:00:19.1]} 45. Kf3 {[%clk 0:01:40.4]} 45...
Kb6 {[%clk 0:00:20.1]} 46. h3 {[%clk 0:01:40.2]} 46... Rxa6 {[%clk 0:00:21.2]}
47. Rxa6+ {[%clk 0:01:40.8]} 47... Kxa6 {[%clk 0:00:23.1]} 48. g4 {[%clk
0:01:42.6]} 48... Re5 {[%clk 0:00:24.1]} 49. g5 {[%clk 0:01:42.6]} 49... Re4
{[%clk 0:00:24]} 50. Kg3 {[%clk 0:01:42.8]} 50... Kb6 {[%clk 0:00:24.3]} 51. h4
{[%clk 0:01:44]} 51... Kc5 {[%clk 0:00:25.9]} 52. h5 {[%clk 0:01:44.9]} 52...
Rg4+ {[%clk 0:00:27.1]} 53. Kf3 {[%clk 0:01:45.1]} 53... Rxg5 {[%clk 0:00:29]}
54. Kf4 {[%clk 0:01:45.7]} 54... Rxh5 {[%clk 0:00:30.3]} 0-1

[Event "*** Titled Tuesday Blitz"]
[Site "Chess.com"]
[Date "2019.05.07"]
[Round "2"]
[White "Heineccius"]
[Black "Tartody"]
[Result "0-1"]
[WhiteElo "2496"]
[BlackElo "2493"]
[TimeControl "180+2"]
[EndTime "13:23:57 PDT"]
[Termination "Tartody won by resignation"]

1. d4 {[%clk 0:03:01.9]} 1... e6 {[%clk 0:03:00.7]} 2. c4 {[%clk 0:03:02.3]}
2... Nf6 {[%clk 0:03:00]} 3. Nc3 {[%clk 0:03:02.5]} 3... d5 {[%clk 0:03:01.2]}
4. cxd5 {[%clk 0:03:02.9]} 4... exd5 {[%clk 0:03:02.8]} 5. Bg5 {[%clk 0:03:03]}
5... Be7 {[%clk 0:03:03.6]} 6. e3 {[%clk 0:03:04]} 6... O-O {[%clk 0:03:05.2]}
7. Bd3 {[%clk 0:03:03.9]} 7... h6 {[%clk 0:03:06.6]} 8. Bh4 {[%clk 0:03:03.4]}
8... Re8 {[%clk 0:03:08.2]} 9. Nge2 {[%clk 0:02:58.6]} 9... b6 {[%clk
0:03:07.9]} 10. Qc2 {[%clk 0:02:55.3]} 10... Bb7 {[%clk 0:03:08.2]} 11. O-O
{[%clk 0:02:52.6]} 11... Nbd7 {[%clk 0:03:09.3]} 12. a3 {[%clk 0:02:46.5]} 12...
c5 {[%clk 0:03:10.3]} 13. Rad1 {[%clk 0:02:32.7]} 13... c4 {[%clk 0:03:01.8]}
14. Bf5 {[%clk 0:02:32.6]} 14... a6 {[%clk 0:03:02.8]} 15. Bg3 {[%clk
0:02:27.3]} 15... b5 {[%clk 0:03:03.1]} 16. Nf4 {[%clk 0:02:23.9]} 16... Nf8
{[%clk 0:02:56.2]} 17. Rfe1 {[%clk 0:02:21.2]} 17... Qb6 {[%clk 0:02:56]} 18. f3
{[%clk 0:02:17.3]} 18... a5 {[%clk 0:02:56.3]} 19. Bf2 {[%clk 0:02:13.4]} 19...
b4 {[%clk 0:02:44.9]} 20. Na4 {[%clk 0:02:06.8]} 20... Qb5 {[%clk 0:02:44.1]}
21. Nc5 {[%clk 0:02:04.1]} 21... Bxc5 {[%clk 0:02:32.2]} 22. dxc5 {[%clk
0:02:04.9]} 22... g6 {[%clk 0:02:32.4]} 23. Bh3 {[%clk 0:01:52.2]} 23... bxa3
{[%clk 0:02:21.6]} 24. bxa3 {[%clk 0:01:42.3]} 24... Qxc5 {[%clk 0:02:22.7]} 25.
e4 {[%clk 0:01:40.5]} 25... Qxa3 {[%clk 0:02:23.5]} 26. Nxd5 {[%clk 0:01:31.2]}
26... Nxd5 {[%clk 0:02:21.3]} 27. exd5 {[%clk 0:01:32.1]} 27... Rxe1+ {[%clk
0:02:21.4]} 28. Bxe1 {[%clk 0:01:32.7]} 28... Qb3 {[%clk 0:02:10.8]} 29. Qc1
{[%clk 0:01:10.6]} 29... a4 {[%clk 0:01:34.5]} 30. Bc3 {[%clk 0:01:11.3]} 30...
Rd8 {[%clk 0:01:32.6]} 31. d6 {[%clk 0:00:58.7]} 31... Qb6+ {[%clk 0:01:33.1]}
32. Bd4 {[%clk 0:00:47.8]} 32... Qxd6 {[%clk 0:01:33.5]} 33. Qxh6 {[%clk
0:00:47.4]} 33... Qxd4+ {[%clk 0:01:10.7]} 34. Rxd4 {[%clk 0:00:47.2]} 34...
Rxd4 {[%clk 0:01:12.6]} 35. Qe3 {[%clk 0:00:43.1]} 35... Rd3 {[%clk 0:01:12.1]}
36. Qc5 {[%clk 0:00:28]} 36... Bd5 {[%clk 0:01:02.7]} 37. Bc8 {[%clk 0:00:17.9]}
37... a3 {[%clk 0:01:00.3]} 38. Qa5 {[%clk 0:00:19.3]} 38... c3 {[%clk
0:00:43.6]} 39. Qxa3 {[%clk 0:00:19.8]} 39... Rd1+ {[%clk 0:00:44.3]} 40. Kf2
{[%clk 0:00:18.8]} 40... c2 {[%clk 0:00:46.2]} 0-1

[Event "*** Titled Tuesday Blitz"]
[Site "Chess.com"]
[Date "2019.05.07"]
[Round "2"]
[White "JonasHilwerda"]
[Black "EfrenRamos1"]
[Result "1/2-1/2"]
[WhiteElo "2234"]
[BlackElo "2306"]
[TimeControl "180+2"]
[EndTime "13:24:09 PDT"]
[Termination "Game drawn - insufficient material"]

1. e4 {[%clk 0:03:01.9]} 1... c6 {[%clk 0:02:59.3]} 2. d4 {[%clk 0:02:58.7]}
2... d5 {[%clk 0:03:00.2]} 3. exd5 {[%clk 0:02:59.7]} 3... cxd5 {[%clk
0:03:00.9]} 4. Bd3 {[%clk 0:03:00.6]} 4... Nc6 {[%clk 0:03:01.8]} 5. c3 {[%clk
0:03:01.8]} 5... Qc7 {[%clk 0:03:02.9]} 6. Ne2 {[%clk 0:03:01.5]} 6... e5 {[%clk
0:03:01.2]} 7. dxe5 {[%clk 0:03:00.3]} 7... Nxe5 {[%clk 0:03:02.2]} 8. Bf4
{[%clk 0:03:00.5]} 8... Bd6 {[%clk 0:03:02]} 9. Bb5+ {[%clk 0:02:51.6]} 9... Nc6
{[%clk 0:02:56.3]} 10. Bxd6 {[%clk 0:02:51.1]} 10... Qxd6 {[%clk 0:02:56.8]} 11.
O-O {[%clk 0:02:44.8]} 11... Nf6 {[%clk 0:02:49.3]} 12. Re1 {[%clk 0:02:32.5]}
12... O-O {[%clk 0:02:48.8]} 13. Ng3 {[%clk 0:02:33.4]} 13... Bg4 {[%clk
0:02:44.5]} 14. Qd2 {[%clk 0:02:27.5]} 14... Rfe8 {[%clk 0:02:43.2]} 15. Na3
{[%clk 0:02:26.7]} 15... a6 {[%clk 0:02:41]} 16. Ba4 {[%clk 0:02:17.4]} 16...
Re6 {[%clk 0:02:35.4]} 17. Nc2 {[%clk 0:02:13.7]} 17... Rae8 {[%clk 0:02:18.4]}
18. h3 {[%clk 0:02:08.1]} 18... Rxe1+ {[%clk 0:02:17.2]} 19. Rxe1 {[%clk
0:02:08.4]} 19... Rxe1+ {[%clk 0:02:16.9]} 20. Nxe1 {[%clk 0:02:06]} 20... Be6
{[%clk 0:02:14.5]} 21. Nf3 {[%clk 0:02:07.1]} 21... Ne5 {[%clk 0:02:12.9]} 22.
Nxe5 {[%clk 0:02:02.9]} 22... Qxe5 {[%clk 0:02:13.7]} 23. Bb3 {[%clk 0:02:04]}
23... h6 {[%clk 0:02:11.2]} 24. Qd4 {[%clk 0:01:55.5]} 24... Qxd4 {[%clk
0:02:07.9]} 25. cxd4 {[%clk 0:01:57.4]} 25... Kf8 {[%clk 0:02:08.6]} 26. Kf1
{[%clk 0:01:57.9]} 26... Ke7 {[%clk 0:02:06.7]} 27. Ke2 {[%clk 0:01:59.1]} 27...
Kd6 {[%clk 0:02:07.7]} 28. Kd3 {[%clk 0:02:00.4]} 28... g5 {[%clk 0:02:07.6]}
29. f3 {[%clk 0:02:00.1]} 29... Bd7 {[%clk 0:02:06.1]} 30. Kd2 {[%clk
0:01:58.6]} 30... a5 {[%clk 0:02:07.1]} 31. a3 {[%clk 0:01:58.2]} 31... b5
{[%clk 0:02:06.4]} 32. Bc2 {[%clk 0:01:56]} 32... h5 {[%clk 0:02:05.8]} 33. Bf5
{[%clk 0:01:51.3]} 33... h4 {[%clk 0:02:01.3]} 34. Bxd7 {[%clk 0:01:40.5]} 34...
Kxd7 {[%clk 0:02:03.2]} 35. Ne2 {[%clk 0:01:40.9]} 35... Kd6 {[%clk 0:02:05.1]}
36. Ke3 {[%clk 0:01:34.5]} 36... Kd7 {[%clk 0:02:07]} 37. Nc1 {[%clk 0:01:31.1]}
37... Nh5 {[%clk 0:02:01.6]} 38. Nd3 {[%clk 0:01:32.2]} 38... f6 {[%clk
0:02:00.7]} 39. f4 {[%clk 0:01:27.1]} 39... Ng3 {[%clk 0:02:00.2]} 40. fxg5
{[%clk 0:01:25.6]} 40... fxg5 {[%clk 0:02:02.1]} 41. Nc5+ {[%clk 0:01:16.4]}
41... Kc6 {[%clk 0:01:59.2]} 42. Ne6 {[%clk 0:01:13.5]} 42... Nf5+ {[%clk
0:01:58.3]} 43. Kd3 {[%clk 0:01:10.5]} 43... Nd6 {[%clk 0:01:55.7]} 44. Nxg5
{[%clk 0:01:08.7]} 44... Nc4 {[%clk 0:01:56.5]} 45. b3 {[%clk 0:00:55.1]} 45...
Nxa3 {[%clk 0:01:57]} 46. Nf3 {[%clk 0:00:56.3]} 46... a4 {[%clk 0:01:56.1]} 47.
bxa4 {[%clk 0:00:56.4]} 47... bxa4 {[%clk 0:01:57.2]} 48. Nxh4 {[%clk 0:00:56]}
48... Kd6 {[%clk 0:01:56.8]} 49. Nf5+ {[%clk 0:00:56.1]} 49... Ke6 {[%clk
0:01:57.3]} 50. Ne3 {[%clk 0:00:57.5]} 50... Nb5 {[%clk 0:01:57.3]} 51. g4
{[%clk 0:00:53.3]} 51... a3 {[%clk 0:01:58.2]} 52. h4 {[%clk 0:00:53.6]} 52...
a2 {[%clk 0:01:58.9]} 53. Nc2 {[%clk 0:00:54.3]} 53... Na3 {[%clk 0:01:57]} 54.
Na1 {[%clk 0:00:53.5]} 54... Nc4 {[%clk 0:01:56.8]} 55. Kc3 {[%clk 0:00:51.1]}
55... Ne3 {[%clk 0:01:56.1]} 56. g5 {[%clk 0:00:48.1]} 56... Kf5 {[%clk
0:01:55.3]} 57. Kb2 {[%clk 0:00:46.8]} 57... Ng2 {[%clk 0:01:54.4]} 58. Kxa2
{[%clk 0:00:38.8]} 58... Nxh4 {[%clk 0:01:48.2]} 59. Kb3 {[%clk 0:00:38.8]}
59... Nf3 {[%clk 0:01:48.5]} 60. Nc2 {[%clk 0:00:35.7]} 60... Nxd4+ {[%clk
0:01:47.6]} 61. Nxd4+ {[%clk 0:00:37.6]} 61... Kxg5 {[%clk 0:01:48.7]} 62. Kb4
{[%clk 0:00:38.9]} 62... Kf4 {[%clk 0:01:49.2]} 63. Kc5 {[%clk 0:00:40.8]} 63...
Ke3 {[%clk 0:01:49.9]} 64. Nb5 {[%clk 0:00:42.7]} 64... d4 {[%clk 0:01:50.6]}
65. Nxd4 {[%clk 0:00:44.6]} 1/2-1/2

[Event "*** Titled Tuesday Blitz"]
[Site "Chess.com"]
[Date "2019.05.07"]
[Round "2"]
[White "Lagmantr"]
[Black "ShimanovAlex"]
[Result "1-0"]
[WhiteElo "2584"]
[BlackElo "2833"]
[TimeControl "180+2"]
[EndTime "13:24:14 PDT"]
[Termination "Lagmantr won by resignation"]

1. e4 {[%clk 0:02:59.7]} 1... c6 {[%clk 0:03:00.8]} 2. d4 {[%clk 0:03:00.5]}
2... d5 {[%clk 0:03:02.7]} 3. Nc3 {[%clk 0:03:02.1]} 3... dxe4 {[%clk
0:03:03.2]} 4. Nxe4 {[%clk 0:03:04]} 4... Nf6 {[%clk 0:03:04.9]} 5. Nxf6+ {[%clk
0:03:05]} 5... exf6 {[%clk 0:03:06.8]} 6. Be3 {[%clk 0:03:05.9]} 6... Bd6 {[%clk
0:03:07.7]} 7. Bd3 {[%clk 0:03:06.9]} 7... O-O {[%clk 0:03:08.3]} 8. Ne2 {[%clk
0:03:08.1]} 8... Qc7 {[%clk 0:03:09.3]} 9. Ng3 {[%clk 0:03:08.1]} 9... Re8
{[%clk 0:03:09.1]} 10. O-O {[%clk 0:03:08.6]} 10... Nd7 {[%clk 0:03:10.1]} 11.
Nf5 {[%clk 0:03:05.9]} 11... Bf8 {[%clk 0:03:03.7]} 12. Qf3 {[%clk 0:02:58.5]}
12... Nb6 {[%clk 0:02:59.2]} 13. Rae1 {[%clk 0:02:42.6]} 13... Be6 {[%clk
0:02:54.4]} 14. Qh3 {[%clk 0:01:58.5]} 14... g6 {[%clk 0:02:51.9]} 15. Nh6+
{[%clk 0:01:59.5]} 15... Kh8 {[%clk 0:02:48.1]} 16. Qh4 {[%clk 0:01:56.2]} 16...
Bg7 {[%clk 0:02:43.8]} 17. Ng4 {[%clk 0:01:55.9]} 17... Bxg4 {[%clk 0:02:44.3]}
18. Qxg4 {[%clk 0:01:56.5]} 18... f5 {[%clk 0:02:46.2]} 19. Qh4 {[%clk
0:01:53.3]} 19... Nd5 {[%clk 0:02:46.8]} 20. Bh6 {[%clk 0:01:53.1]} 20... Nb4
{[%clk 0:02:42.7]} 21. Bxg7+ {[%clk 0:01:38.6]} 21... Kxg7 {[%clk 0:02:43]} 22.
Bxf5 {[%clk 0:01:37.3]} 22... Qa5 {[%clk 0:02:32.6]} 23. c3 {[%clk 0:01:31.7]}
23... Qxf5 {[%clk 0:02:27.3]} 24. cxb4 {[%clk 0:01:32.4]} 24... Qc2 {[%clk
0:02:28.6]} 25. Re7 {[%clk 0:01:30.5]} 25... Qxb2 {[%clk 0:02:27.1]} 26. Rxb7
{[%clk 0:01:31.2]} 26... Qxa2 {[%clk 0:02:28.1]} 27. Qf4 {[%clk 0:01:27.3]}
27... Qd5 {[%clk 0:02:27.8]} 28. h3 {[%clk 0:01:26.5]} 28... Re4 {[%clk
0:02:27.5]} 29. Qc7 {[%clk 0:01:14.7]} 29... Rxd4 {[%clk 0:02:22.4]} 30. Re1
{[%clk 0:01:15.3]} 30... Rf8 {[%clk 0:01:53.2]} 31. Qa5 {[%clk 0:00:47.2]} 31...
c5 {[%clk 0:01:27]} 32. Rxa7 {[%clk 0:00:46.5]} 32... Rxb4 {[%clk 0:01:22.7]}
33. Rc7 {[%clk 0:00:39.4]} 33... Rc4 {[%clk 0:01:22.8]} 34. Qa1+ {[%clk
0:00:39.4]} 34... Kg8 {[%clk 0:01:23.3]} 35. Qf6 {[%clk 0:00:40.5]} 35... Rd4
{[%clk 0:00:30]} 36. Rce7 {[%clk 0:00:34.6]} 36... c4 {[%clk 0:00:27.7]} 37. Re8
{[%clk 0:00:35]} 37... Qc5 {[%clk 0:00:02.4]} 38. Rxf8+ {[%clk 0:00:35.5]} 38...
Qxf8 {[%clk 0:00:04.3]} 39. Qxd4 {[%clk 0:00:36.3]} 39... Qc8 {[%clk 0:00:06.2]}
40. Rc1 {[%clk 0:00:37]} 1-0

[Event "*** Titled Tuesday Blitz"]
[Site "Chess.com"]
[Date "2019.05.07"]
[Round "2"]
[White "pheonixking2000"]
[Black "Lagravesamuell"]
[Result "1-0"]
[WhiteElo "2770"]
[BlackElo "2630"]
[TimeControl "180+2"]
[EndTime "13:24:20 PDT"]
[Termination "pheonixking2000 won by resignation"]

1. d4 {[%clk 0:03:01.9]} 1... Nf6 {[%clk 0:03:01.1]} 2. Nf3 {[%clk 0:03:03.4]}
2... d5 {[%clk 0:03:02]} 3. Bf4 {[%clk 0:03:03.8]} 3... c5 {[%clk 0:03:02.6]} 4.
e3 {[%clk 0:03:05.2]} 4... Nc6 {[%clk 0:03:04.2]} 5. Nbd2 {[%clk 0:03:06.8]}
5... Qb6 {[%clk 0:03:02.5]} 6. dxc5 {[%clk 0:03:07.6]} 6... Qxc5 {[%clk
0:03:02.8]} 7. a3 {[%clk 0:03:01.3]} 7... Bg4 {[%clk 0:02:55.7]} 8. c4 {[%clk
0:02:58.7]} 8... Rd8 {[%clk 0:02:43.3]} 9. Qc2 {[%clk 0:02:53.6]} 9... dxc4
{[%clk 0:02:32.9]} 10. Bxc4 {[%clk 0:02:51.7]} 10... e6 {[%clk 0:02:34]} 11. b4
{[%clk 0:02:46.5]} 11... Qh5 {[%clk 0:02:17]} 12. h3 {[%clk 0:02:43.6]} 12...
Bf5 {[%clk 0:02:12.7]} 13. Qa4 {[%clk 0:02:17.1]} 13... Nd5 {[%clk 0:01:28.5]}
14. Bxd5 {[%clk 0:02:01.8]} 14... exd5 {[%clk 0:01:29.4]} 15. b5 {[%clk
0:01:58.7]} 15... Nb8 {[%clk 0:01:25.8]} 16. Qxa7 {[%clk 0:01:55.9]} 16... Nd7
{[%clk 0:01:24.8]} 17. Nd4 {[%clk 0:01:29.5]} 17... Bd3 {[%clk 0:01:21.8]} 18.
Qxb7 {[%clk 0:01:15.4]} 18... Bc5 {[%clk 0:00:54.3]} 19. g4 {[%clk 0:01:13.5]}
19... Qg6 {[%clk 0:00:54.8]} 20. Qc6 {[%clk 0:01:14]} 20... Bxd4 {[%clk
0:00:35.3]} 21. exd4 {[%clk 0:01:05.3]} 21... O-O {[%clk 0:00:26.6]} 22. Qxg6
{[%clk 0:01:05.7]} 22... Rfe8+ {[%clk 0:00:27.3]} 23. Be3 {[%clk 0:00:58.8]}
23... hxg6 {[%clk 0:00:28.1]} 24. a4 {[%clk 0:00:56.6]} 24... Ra8 {[%clk
0:00:29]} 25. Nb3 {[%clk 0:00:49.9]} 25... Bc2 {[%clk 0:00:30]} 26. Ra3 {[%clk
0:00:47.2]} 26... Bxb3 {[%clk 0:00:30]} 27. Rxb3 {[%clk 0:00:49.1]} 27... Rxa4
{[%clk 0:00:31.7]} 28. O-O {[%clk 0:00:44.2]} 28... Nb6 {[%clk 0:00:32.5]} 29.
Rc1 {[%clk 0:00:42.6]} 29... Nc4 {[%clk 0:00:31.6]} 30. b6 {[%clk 0:00:42.9]}
30... Rb8 {[%clk 0:00:32.4]} 31. b7 {[%clk 0:00:37.8]} 31... Ra7 {[%clk
0:00:32.1]} 32. Rb5 {[%clk 0:00:22.2]} 32... Rbxb7 {[%clk 0:00:23.6]} 33. Rxd5
{[%clk 0:00:22.5]} 33... Nxe3 {[%clk 0:00:23.1]} 34. fxe3 {[%clk 0:00:24.4]}
34... Rb3 {[%clk 0:00:24.7]} 35. g5 {[%clk 0:00:21.6]} 35... Rxe3 {[%clk
0:00:23.8]} 36. Rd8+ {[%clk 0:00:22.4]} 36... Kh7 {[%clk 0:00:24.3]} 37. Rcc8
{[%clk 0:00:23.9]} 37... Rg3+ {[%clk 0:00:12.9]} 38. Kf2 {[%clk 0:00:23.4]} 1-0

[Event "*** Titled Tuesday Blitz"]
[Site "Chess.com"]
[Date "2019.05.07"]
[Round "2"]
[White "MFguimaraes"]
[Black "Benjoneliere44"]
[Result "1-0"]
[WhiteElo "2319"]
[BlackElo "2484"]
[TimeControl "180+2"]
[EndTime "13:24:22 PDT"]
[Termination "MFguimaraes won by resignation"]

1. e4 {[%clk 0:03:01.9]} 1... c5 {[%clk 0:03:00.8]} 2. Nf3 {[%clk 0:03:02.9]}
2... d6 {[%clk 0:03:02.2]} 3. d4 {[%clk 0:03:03.6]} 3... cxd4 {[%clk 0:03:04.1]}
4. Nxd4 {[%clk 0:03:04.8]} 4... Nf6 {[%clk 0:03:05.6]} 5. Nc3 {[%clk 0:03:06]}
5... g6 {[%clk 0:03:07]} 6. Bc4 {[%clk 0:03:02.8]} 6... Bg7 {[%clk 0:03:07.9]}
7. Bb3 {[%clk 0:02:59]} 7... O-O {[%clk 0:03:07.9]} 8. f3 {[%clk 0:03:00.4]}
8... Nc6 {[%clk 0:03:09]} 9. Be3 {[%clk 0:03:01.4]} 9... Bd7 {[%clk 0:03:09.5]}
10. Qd2 {[%clk 0:03:02.4]} 10... Rc8 {[%clk 0:03:09.1]} 11. h4 {[%clk
0:03:03.1]} 11... h5 {[%clk 0:03:09.7]} 12. Nxc6 {[%clk 0:02:56.4]} 12... bxc6
{[%clk 0:03:01.5]} 13. Bh6 {[%clk 0:02:57.3]} 13... c5 {[%clk 0:02:58.5]} 14.
Bxg7 {[%clk 0:02:56.4]} 14... Kxg7 {[%clk 0:02:47.3]} 15. a3 {[%clk 0:02:56.4]}
15... Qb6 {[%clk 0:02:37.8]} 16. Nd5 {[%clk 0:02:54.1]} 16... Nxd5 {[%clk
0:02:37.3]} 17. exd5 {[%clk 0:02:55]} 17... c4 {[%clk 0:02:34.7]} 18. Qc3+
{[%clk 0:02:56.1]} 18... Kg8 {[%clk 0:02:23.1]} 19. Ba2 {[%clk 0:02:45.5]} 19...
Rc5 {[%clk 0:02:21.9]} 20. O-O-O {[%clk 0:02:44.6]} 20... Rb8 {[%clk 0:02:22.3]}
21. g4 {[%clk 0:02:44.6]} 21... Rb5 {[%clk 0:02:23.4]} 22. Bxc4 {[%clk
0:02:20.6]} 22... Rxb2 {[%clk 0:02:19.8]} 23. Bb3 {[%clk 0:02:21.3]} 23... Rxb3
{[%clk 0:02:17]} 24. Qxb3 {[%clk 0:02:20.7]} 24... Qc7 {[%clk 0:02:15.2]} 25.
Qd3 {[%clk 0:02:16.2]} 25... Ba4 {[%clk 0:01:52.1]} 26. gxh5 {[%clk 0:02:09.4]}
26... Rb3 {[%clk 0:01:49.3]} 27. Qe2 {[%clk 0:01:59]} 27... Qc5 {[%clk
0:01:09.3]} 28. Rd3 {[%clk 0:01:45.3]} 28... Qxa3+ {[%clk 0:01:02.6]} 29. Kd2
{[%clk 0:01:45.7]} 29... Qb4+ {[%clk 0:01:03.6]} 30. Ke3 {[%clk 0:01:40.2]}
30... Qc5+ {[%clk 0:01:04.4]} 31. Kf4 {[%clk 0:01:37.2]} 31... Rb4+ {[%clk
0:01:02.7]} 32. Kg3 {[%clk 0:01:36.8]} 32... Bb5 {[%clk 0:00:47.8]} 33. Qxe7
{[%clk 0:01:29.7]} 33... Bxd3 {[%clk 0:00:48.7]} 34. Qe8+ {[%clk 0:01:29.1]}
34... Kg7 {[%clk 0:00:45.4]} 35. h6+ {[%clk 0:01:29.8]} 35... Kh7 {[%clk
0:00:43]} 36. Qxf7+ {[%clk 0:01:30.7]} 36... Kxh6 {[%clk 0:00:44.4]} 37. h5
{[%clk 0:01:13.6]} 37... g5 {[%clk 0:00:25.6]} 38. Qf6+ {[%clk 0:01:06.9]} 38...
Kh7 {[%clk 0:00:26.5]} 39. Qe7+ {[%clk 0:00:56.1]} 39... Kh6 {[%clk 0:00:26.1]}
40. Qf8+ {[%clk 0:00:48.8]} 40... Kh7 {[%clk 0:00:26.9]} 41. Qf7+ {[%clk
0:00:42.7]} 41... Kh6 {[%clk 0:00:26.7]} 42. cxd3 {[%clk 0:00:43.8]} 42... Rg4+
{[%clk 0:00:16.4]} 43. Kxg4 {[%clk 0:00:40.4]} 43... Qd4+ {[%clk 0:00:16.9]} 44.
Kg3 {[%clk 0:00:39.6]} 44... Qe5+ {[%clk 0:00:16.7]} 45. Kh3 {[%clk 0:00:38.6]}
45... Qf5+ {[%clk 0:00:13.7]} 46. Qxf5 {[%clk 0:00:38.2]} 1-0